Workbook

Sheet WA Gas - Sched 191
D4: GEN SERVICE | E4: LRG GEN SVC | F4: EX LRG GEN SVC | G4: INTERRUPTIBLE | H4: TRANSPORT | I4: TRANSPORT
A5: Source | C5: TOTAL | D5: SCHEDULE 101&102 | E5: SCH. 111,112&116 | F5: SCH. 121,122&126 | G5: SCH. 131&132 | H5: SCHEDULE 146 | I5: SCHEDULE 148
A7: Forecast | B7: Total Annual Therms | C7: =SUM(D7:I7) -> 184274156.6 | D7: =SUM('Revenue - current rates'!K4:V4) -> 125413767.9 | E7: =SUM('Revenue - current rates'!K5:V5) -> 53411916.68 | F7: =SUM('Revenue - current rates'!K6:V6) -> 4507854.051 | G7: =SUM('Revenue - current rates'!K7:V7) -> 940618.0253 | L7: August 2018 - July 2019
B9: Present DSM Rates | D9: 0.02229 | E9: 0.01581 | F9: 0.01614 | G9: 0.01521
B11: Present Gross DSM Revenue | C11: =SUM(D11:I11) -> 3726978.853 | D11: =D7*D9 -> 2795472.886 | E11: =E7*E9 -> 844442.4027 | F11: =F7*F9 -> 72756.76439 | G11: =G7*G9 -> 14306.80016
A13: UG-170486 | B13: Base Revenue | C13: =SUM(D13:I13) -> 82226000 | D13: =ROUND('Base Revenue'!F14*1000,-3) -> 65960000 | E13: =ROUND('Base Revenue'!F15*1000,-3) -> 15082000 | F13: =ROUND('Base Revenue'!F16*1000,-3) -> 999000 | G13: =ROUND('Base Revenue'!F17*1000,-3) -> 185000
B15: Percentage of Current Base Volumetric Revenue | C15: =SUM(D15:H15) -> 1 | D15: =D13/$C$13 -> 0.8021793593 | E15: =E13/$C$13 -> 0.1834213023 | F15: =F13/$C$13 -> 0.01214944178 | G15: =G13/$C$13 -> 0.002249896626
B17: Revenue Requirement | C17: 4733802.693
B19: Revenue Spread Based on Current Allocation | C19: =SUM(D19:H19) -> 4733802.693 | D19: =$C$17*D15 -> 3797358.811 | E19: =$C$17*E15 -> 868280.2546 | F19: =$C$17*F15 -> 57513.06022 | G19: =$C$17*G15 -> 10650.56671
B21: DSM Revenue Increase <Decrease> | C21: =SUM(D21:H21) -> 1006823.84 | D21: =D19-D11 -> 1001885.925 | E21: =E19-E11 -> 23837.85188 | F21: -15243.70417 | G21: -3656.233456
B23: Proposed DSM Rates | D23: =D19/D7 -> 0.03027864385 | E23: =E19/E7 -> 0.01625630212 | F23: =F19/F7 -> 0.01275841222 | G23: =G19/G7 -> 0.01132294558
B25: Percentage Increase <Decrease> | D25: =D19/D11-1 -> 0.3583958658 | E25: =E19/E11-1 -> 0.02822910338 | F25: -0.2095159714 | G25: -0.2555591337
B27: Present Billed Revenue | C27: =SUM(D27:I27) -> 135308000 | D27: 100191000 | E27: 27941000 | F27: 2247000 | G27: 426000 | H27: 2891000 | I27: 1612000
B29: Proposed Billed Revenue | C29: =SUM(D29:I29) -> 136314823.8 | D29: =D27+D21 -> 101192885.9 | E29: =E27+E21 -> 27964837.85 | F29: 2231756.296 | G29: 422343.7665 | H29: 2891000 | I29: 1612000
B31: Overall Billed Percentage Increase <Decrease> | C31: =C29/C27-1 -> 0.007440977914 | D31: =D29/D27-1 -> 0.009999759713 | E31: =E29/E27-1 -> 0.0008531495609 | F31: =F29/F27-1 -> -0.006784024996 | G31: =G29/G27-1 -> -0.008582707644 | H31: 0 | I31: 0
B34: Present DSM Revenue as a Percentage of Billed Revenue | C34: =C11/C27 -> 0.02754440871
A37: UG-170486 | B37: Revenue Conversion Factor | C37: =RCF!C25 -> 0.953535
B39: Proposed Net DSM Revenue | C39: =SUM(D39:I39) -> 4513846.551 | D39: =D19*$C$37 -> 3620914.534 | E39: =E19*$C$37 -> 827935.6125 | F39: 54840.71588 | G39: 10155.68813 | H39: 0 | I39: 0
B41: Proposed DSM Revenue as a % of Billed Revenue | C41: =C19/C27 -> 0.03498538662
C43: Present | D43: Proposed
B44: Average Monthly Bill @ 65 Therms | C44: =9.5+(65*0.65426) -> 52.0269 | D44: =9.5+(65*(0.65426+(ROUND(D23,5)-D9))) -> 52.54625 | E44: =D44-C44 -> 0.51935 | F44: =E44/C44 -> 0.009982336061

Sheet Revenue - current rates
A3: Forecasted Usage | D3: 2018-01-01 | E3: 2018-02-01 | F3: 2018-03-01 | G3: 2018-04-01 | H3: 2018-05-01 | I3: 2018-06-01 | J3: 2018-07-01 | K3: 2018-08-01 | L3: 2018-09-01 | M3: 2018-10-01 | N3: 2018-11-01 | O3: 2018-12-01 | P3: 2019-01-01 | Q3: 2019-02-01 | R3: 2019-03-01 | S3: 2019-04-01 | T3: 2019-05-01 | U3: 2019-06-01 | V3: 2019-07-01 | W3: 2019-08-01 | X3: 2019-09-01 | Y3: 2019-10-01 | Z3: 2019-11-01 | AA3: 2019-12-01 | AB3: 2020-01-01 | AC3: 2020-02-01 | AD3: 2020-03-01 | AE3: 2020-04-01 | AF3: 2020-05-01 | AG3: 2020-06-01 | AH3: 2020-07-01 | AJ3: 2018-2019 | AK3: 2019-2020
B4: Small Service Schedule 101 | G4: =G42 -> 11688527.32 | H4: =H42 -> 4933991.284 | I4: 2947345.449 | J4: 2341775.405 | K4: 2171370.132 | L4: 2572701.755 | M4: 6931638.448 | N4: 15496470.64 | O4: 22498767.12 | P4: 22531428.82 | Q4: 17964194.47 | R4: 15363243.72 | S4: 9326373.283 | T4: 5062409.439 | U4: 3035236.757 | V4: 2459933.279 | W4: 2282350.352 | X4: 2603627.553 | Y4: 7088808.108 | Z4: 15589507.65 | AA4: 22745738.37 | AB4: 22647091.31 | AC4: 18636273.37 | AD4: 15472345.69 | AE4: 9398746.529 | AF4: 5126667.16 | AG4: 3091595.183 | AH4: 2541619.162 | AJ4: =SUM(K4:V4) -> 125413767.9 | AK4: =SUM(W4:AH4) -> 127224370.4
B5: Large Service Schedule 111 | G5: =G43+G44 -> 4575160.443 | H5: =H43+H44 -> 2132626.072 | I5: 1603324.957 | J5: 1603390.15 | K5: 1721494.04 | L5: 2085011.06 | M5: 4354135.614 | N5: 7082138.011 | O5: 8708553.37 | P5: 8315588.694 | Q5: 6634088.44 | R5: 5684569.1 | S5: 3584642.654 | T5: 2146619.202 | U5: 1558586.129 | V5: 1536490.364 | W5: 1701965.304 | X5: 2068759.388 | Y5: 4451362.474 | Z5: 7322463.024 | AA5: 8895026.861 | AB5: 8490307.922 | AC5: 6963927.972 | AD5: 5752765.313 | AE5: 3635846.909 | AF5: 2135477.581 | AG5: 1534337.219 | AH5: 1489788.012 | AJ5: =SUM(K5:V5) -> 53411916.68 | AK5: =SUM(W5:AH5) -> 54442027.98
B6: Extra Large Service Schedule 121 | G6: =G45 -> 366867.2212 | H6: =H45 -> 217201.1506 | I6: 191022.4595 | J6: 218783.4681 | K6: 246374.0628 | L6: 257982.8187 | M6: 464518.7841 | N6: 583937.7516 | O6: 549249.1878 | P6: 546922.2996 | Q6: 488814.4124 | R6: 413105.6266 | S6: 300574.1327 | T6: 225398.0842 | U6: 206827.3172 | V6: 224149.5738 | W6: 249789.1879 | X6: 268162.435 | Y6: 459704.7036 | Z6: 587956.1802 | AA6: 552807.5886 | AB6: 544814.3828 | AC6: 511002.5981 | AD6: 415839.7134 | AE6: 305411.2258 | AF6: 232727.6298 | AG6: 213075.6684 | AH6: 232286.4661 | AJ6: 4507854.051 | AK6: 4573577.78
B7: Interrupt Service Schedule 131 | G7: =G46 -> 91951.18497 | H7: 52160.68766 | I7: 40631.40011 | J7: 36891.35613 | K7: 27985.96762 | L7: 30815.30162 | M7: 68525.57748 | N7: 114466.4842 | O7: 133269.0673 | P7: 137012.3766 | Q7: 117727.7708 | R7: 105014.518 | S7: 72951.37646 | T7: 53416.63692 | U7: 41417.85137 | V7: 38015.09689 | W7: 27846.43091 | X7: 30557.35776 | Y7: 67339.69077 | Z7: 113167.5566 | AA7: 132163.1233 | AB7: 135628.8474 | AC7: 120799.248 | AD7: 104417.5976 | AE7: 72933.47846 | AF7: 53603.40902 | AG7: 42072.43071 | AH7: 38515.64292 | AJ7: 940618.0253 | AK7: 939044.8135
B8: Transport Service Schedule 146 | G8: 3363026 | H8: 2788406 | I8: 2366298 | J8: 2124081 | K8: 1983520 | L8: 2031865 | M8: 2202293 | N8: 2912935 | O8: 3241516 | P8: 3707334 | Q8: 3995641 | R8: 3358243 | S8: 3370313 | T8: 2823329 | U8: 2430936 | V8: 2176014 | W8: 2033122 | X8: 2077351 | Y8: 2231609 | Z8: 2937694 | AA8: 3288535 | AB8: 3764853 | AC8: 4030690 | AD8: 3423700 | AE8: 3409415 | AF8: 2885762 | AG8: 2512017 | AH8: 2244285
B9: Special Contract Transport | G9: 4349512 | H9: 3935607 | I9: 3619411 | J9: 3485178 | K9: 3311152 | L9: 3444386 | M9: 3535930 | N9: 4053454 | O9: 4439028 | P9: 4784684 | Q9: 4902463 | R9: 4375317 | S9: 4397724 | T9: 3986541 | U9: 3669394 | V9: 3532375 | W9: 3355617 | X9: 3487041 | Y9: 3576009 | Z9: 4092546 | AA9: 4478220 | AB9: 4824490 | AC9: 4942839 | AD9: 4416222 | AE9: 4438686 | AF9: 4026798 | AG9: 3708685 | AH9: 3570615
A10: Total Forecasted Usage | D10: =SUM(D4:D9) -> 0 | E10: 0 | F10: 0 | G10: 24435044.17 | H10: =SUM(H4:H9) -> 14059992.19 | I10: 10768033.26 | J10: 9810099.379 | K10: 9461896.202 | L10: 10422761.94 | M10: 17557041.42 | N10: 30243401.89 | O10: 39570382.74 | P10: 40022970.19 | Q10: 34102929.1 | R10: 29299492.97 | S10: 21052578.45 | T10: 14297713.36 | U10: 10942398.05 | V10: 9966977.314 | W10: 9650690.275 | X10: 10535498.73 | Y10: 17874832.98 | Z10: 30643334.41 | AA10: 40092490.95 | AB10: 40407185.47 | AC10: 35205532.18 | AD10: 29585290.31 | AE10: 21261039.14 | AF10: 14461035.78 | AG10: 11101782.5 | AH10: 10117109.28 | AJ10: =SUM(AJ4:AJ9) -> 184274156.6 | AK10: =SUM(AK4:AK9) -> 187179021 | AL10: =(AK10-AJ10)/AJ10 -> 0.01576381862
AJ11: ='WA Gas - Sched 191'!C7 -> 184274156.6
A13: DSM Rates
B14: Small Service Schedule 101 | D14: ='WA Gas - Sched 191'!D9 -> 0.02229 | E14: ='WA Gas - Sched 191'!$D$9 -> 0.02229 | F14: ='WA Gas - Sched 191'!$D$9 -> 0.02229 | G14: ='WA Gas - Sched 191'!$D$9 -> 0.02229 | H14: ='WA Gas - Sched 191'!$D$9 -> 0.02229 | I14: ='WA Gas - Sched 191'!$D$9 -> 0.02229 | J14: ='WA Gas - Sched 191'!$D$9 -> 0.02229 | K14: ='WA Gas - Sched 191'!$D$23 -> 0.03027864385 | L14: ='WA Gas - Sched 191'!$D$23 -> 0.03027864385 | M14: ='WA Gas - Sched 191'!$D$23 -> 0.03027864385 | N14: ='WA Gas - Sched 191'!$D$23 -> 0.03027864385 | O14: ='WA Gas - Sched 191'!$D$23 -> 0.03027864385 | P14: ='WA Gas - Sched 191'!$D$23 -> 0.03027864385 | Q14: ='WA Gas - Sched 191'!$D$23 -> 0.03027864385 | R14: ='WA Gas - Sched 191'!$D$23 -> 0.03027864385 | S14: ='WA Gas - Sched 191'!$D$23 -> 0.03027864385 | T14: ='WA Gas - Sched 191'!$D$23 -> 0.03027864385 | U14: ='WA Gas - Sched 191'!$D$23 -> 0.03027864385 | V14: ='WA Gas - Sched 191'!$D$23 -> 0.03027864385 | W14: ='WA Gas - Sched 191'!$D$23 -> 0.03027864385 | X14: ='WA Gas - Sched 191'!$D$23 -> 0.03027864385 | Y14: ='WA Gas - Sched 191'!$D$23 -> 0.03027864385 | Z14: ='WA Gas - Sched 191'!$D$23 -> 0.03027864385 | AA14: ='WA Gas - Sched 191'!$D$23 -> 0.03027864385 | AB14: ='WA Gas - Sched 191'!$D$23 -> 0.03027864385 | AC14: ='WA Gas - Sched 191'!$D$23 -> 0.03027864385 | AD14: ='WA Gas - Sched 191'!$D$23 -> 0.03027864385 | AE14: ='WA Gas - Sched 191'!$D$23 -> 0.03027864385 | AF14: ='WA Gas - Sched 191'!$D$23 -> 0.03027864385 | AG14: ='WA Gas - Sched 191'!$D$23 -> 0.03027864385 | AH14: ='WA Gas - Sched 191'!$D$23 -> 0.03027864385
B15: Large Service Schedule 111 | D15: ='WA Gas - Sched 191'!E9 -> 0.01581 | E15: ='WA Gas - Sched 191'!$E$9 -> 0.01581 | F15: ='WA Gas - Sched 191'!$E$9 -> 0.01581 | G15: ='WA Gas - Sched 191'!$E$9 -> 0.01581 | H15: ='WA Gas - Sched 191'!$E$9 -> 0.01581 | I15: ='WA Gas - Sched 191'!$E$9 -> 0.01581 | J15: ='WA Gas - Sched 191'!$E$9 -> 0.01581 | K15: ='WA Gas - Sched 191'!$E$23 -> 0.01625630212 | L15: ='WA Gas - Sched 191'!$E$23 -> 0.01625630212 | M15: ='WA Gas - Sched 191'!$E$23 -> 0.01625630212 | N15: ='WA Gas - Sched 191'!$E$23 -> 0.01625630212 | O15: ='WA Gas - Sched 191'!$E$23 -> 0.01625630212 | P15: ='WA Gas - Sched 191'!$E$23 -> 0.01625630212 | Q15: ='WA Gas - Sched 191'!$E$23 -> 0.01625630212 | R15: ='WA Gas - Sched 191'!$E$23 -> 0.01625630212 | S15: ='WA Gas - Sched 191'!$E$23 -> 0.01625630212 | T15: ='WA Gas - Sched 191'!$E$23 -> 0.01625630212 | U15: ='WA Gas - Sched 191'!$E$23 -> 0.01625630212 | V15: ='WA Gas - Sched 191'!$E$23 -> 0.01625630212 | W15: ='WA Gas - Sched 191'!$E$23 -> 0.01625630212 | X15: ='WA Gas - Sched 191'!$E$23 -> 0.01625630212 | Y15: ='WA Gas - Sched 191'!$E$23 -> 0.01625630212 | Z15: ='WA Gas - Sched 191'!$E$23 -> 0.01625630212 | AA15: ='WA Gas - Sched 191'!$E$23 -> 0.01625630212 | AB15: ='WA Gas - Sched 191'!$E$23 -> 0.01625630212 | AC15: ='WA Gas - Sched 191'!$E$23 -> 0.01625630212 | AD15: ='WA Gas - Sched 191'!$E$23 -> 0.01625630212 | AE15: ='WA Gas - Sched 191'!$E$23 -> 0.01625630212 | AF15: ='WA Gas - Sched 191'!$E$23 -> 0.01625630212 | AG15: ='WA Gas - Sched 191'!$E$23 -> 0.01625630212 | AH15: ='WA Gas - Sched 191'!$E$23 -> 0.01625630212
B16: Extra Large Service Schedule 121 | D16: ='WA Gas - Sched 191'!$F$9 -> 0.01614 | E16: ='WA Gas - Sched 191'!$F$9 -> 0.01614 | F16: ='WA Gas - Sched 191'!$F$9 -> 0.01614 | G16: ='WA Gas - Sched 191'!$F$9 -> 0.01614 | H16: ='WA Gas - Sched 191'!$F$9 -> 0.01614 | I16: ='WA Gas - Sched 191'!$F$9 -> 0.01614 | J16: ='WA Gas - Sched 191'!$F$9 -> 0.01614 | K16: ='WA Gas - Sched 191'!$F$23 -> 0.01275841222 | L16: ='WA Gas - Sched 191'!$F$23 -> 0.01275841222 | M16: ='WA Gas - Sched 191'!$F$23 -> 0.01275841222 | N16: ='WA Gas - Sched 191'!$F$23 -> 0.01275841222 | O16: ='WA Gas - Sched 191'!$F$23 -> 0.01275841222 | P16: ='WA Gas - Sched 191'!$F$23 -> 0.01275841222 | Q16: ='WA Gas - Sched 191'!$F$23 -> 0.01275841222 | R16: ='WA Gas - Sched 191'!$F$23 -> 0.01275841222 | S16: ='WA Gas - Sched 191'!$F$23 -> 0.01275841222 | T16: ='WA Gas - Sched 191'!$F$23 -> 0.01275841222 | U16: ='WA Gas - Sched 191'!$F$23 -> 0.01275841222 | V16: ='WA Gas - Sched 191'!$F$23 -> 0.01275841222 | W16: ='WA Gas - Sched 191'!$F$23 -> 0.01275841222 | X16: ='WA Gas - Sched 191'!$F$23 -> 0.01275841222 | Y16: ='WA Gas - Sched 191'!$F$23 -> 0.01275841222 | Z16: ='WA Gas - Sched 191'!$F$23 -> 0.01275841222 | AA16: ='WA Gas - Sched 191'!$F$23 -> 0.01275841222 | AB16: ='WA Gas - Sched 191'!$F$23 -> 0.01275841222 | AC16: ='WA Gas - Sched 191'!$F$23 -> 0.01275841222 | AD16: ='WA Gas - Sched 191'!$F$23 -> 0.01275841222 | AE16: ='WA Gas - Sched 191'!$F$23 -> 0.01275841222 | AF16: ='WA Gas - Sched 191'!$F$23 -> 0.01275841222 | AG16: ='WA Gas - Sched 191'!$F$23 -> 0.01275841222 | AH16: ='WA Gas - Sched 191'!$F$23 -> 0.01275841222
B17: Interrupt Service Schedule 131 | D17: ='WA Gas - Sched 191'!$G$9 -> 0.01521 | E17: ='WA Gas - Sched 191'!$G$9 -> 0.01521 | F17: ='WA Gas - Sched 191'!$G$9 -> 0.01521 | G17: ='WA Gas - Sched 191'!$G$9 -> 0.01521 | H17: ='WA Gas - Sched 191'!$G$9 -> 0.01521 | I17: ='WA Gas - Sched 191'!$G$9 -> 0.01521 | J17: ='WA Gas - Sched 191'!$G$9 -> 0.01521 | K17: ='WA Gas - Sched 191'!$G$23 -> 0.01132294558 | L17: ='WA Gas - Sched 191'!$G$23 -> 0.01132294558 | M17: ='WA Gas - Sched 191'!$G$23 -> 0.01132294558 | N17: ='WA Gas - Sched 191'!$G$23 -> 0.01132294558 | O17: ='WA Gas - Sched 191'!$G$23 -> 0.01132294558 | P17: ='WA Gas - Sched 191'!$G$23 -> 0.01132294558 | Q17: ='WA Gas - Sched 191'!$G$23 -> 0.01132294558 | R17: ='WA Gas - Sched 191'!$G$23 -> 0.01132294558 | S17: ='WA Gas - Sched 191'!$G$23 -> 0.01132294558 | T17: ='WA Gas - Sched 191'!$G$23 -> 0.01132294558 | U17: ='WA Gas - Sched 191'!$G$23 -> 0.01132294558 | V17: ='WA Gas - Sched 191'!$G$23 -> 0.01132294558 | W17: ='WA Gas - Sched 191'!$G$23 -> 0.01132294558 | X17: ='WA Gas - Sched 191'!$G$23 -> 0.01132294558 | Y17: ='WA Gas - Sched 191'!$G$23 -> 0.01132294558 | Z17: ='WA Gas - Sched 191'!$G$23 -> 0.01132294558 | AA17: ='WA Gas - Sched 191'!$G$23 -> 0.01132294558 | AB17: ='WA Gas - Sched 191'!$G$23 -> 0.01132294558 | AC17: ='WA Gas - Sched 191'!$G$23 -> 0.01132294558 | AD17: ='WA Gas - Sched 191'!$G$23 -> 0.01132294558 | AE17: ='WA Gas - Sched 191'!$G$23 -> 0.01132294558 | AF17: ='WA Gas - Sched 191'!$G$23 -> 0.01132294558 | AG17: ='WA Gas - Sched 191'!$G$23 -> 0.01132294558 | AH17: ='WA Gas - Sched 191'!$G$23 -> 0.01132294558
B18: Transport Service Schedule 146
B19: Special Contract Transport
B20: Total
A23: Gross DSM Revenue | D23: =D3 -> 2018-01-01 | E23: =E3 -> 2018-02-01 | F23: 2018-03-01 | G23: 2018-04-01 | H23: 2018-05-01 | I23: 2018-06-01 | J23: 2018-07-01 | K23: 2018-08-01 | L23: 2018-09-01 | M23: 2018-10-01 | N23: 2018-11-01 | O23: 2018-12-01 | P23: 2019-01-01 | Q23: 2019-02-01 | R23: =R3 -> 2019-03-01 | S23: 2019-04-01 | T23: 2019-05-01 | U23: 2019-06-01 | V23: 2019-07-01 | W23: =W3 -> 2019-08-01 | X23: 2019-09-01 | Y23: 2019-10-01 | Z23: 2019-11-01 | AA23: 2019-12-01 | AB23: 2020-01-01 | AC23: 2020-02-01 | AD23: 2020-03-01 | AE23: 2020-04-01 | AF23: 2020-05-01 | AG23: 2020-06-01 | AH23: =AH3 -> 2020-07-01
B24: Small Service Schedule 101 | D24: =D4*D14 -> 0 | E24: 0 | F24: 0 | G24: 260537.2741 | H24: 109978.6657 | I24: 65696.33005 | J24: 52198.17378 | K24: 65746.14289 | L24: 77897.92018 | M24: 209880.6119 | N24: 469212.1156 | O24: 681232.1565 | P24: 682221.1088 | Q24: 543931.4465 | R24: =R4*R14 -> 465178.185 | S24: 282389.9351 | T24: 153282.8924 | U24: =U4*U14 -> 91902.85277 | V24: 74483.44366 | W24: =W4*W14 -> 69106.47344 | X24: 78834.31139 | Y24: 214639.496 | Z24: 472029.1499 | AA24: 688710.1113 | AB24: 685723.2121 | AC24: 564281.0839 | AD24: 468481.6446 | AE24: 284581.2988 | AF24: 155228.5291 | AG24: 93609.30947 | AH24: =AH4*AH14 -> 76956.78142
B25: Large Service Schedule 111 | D25: =D5*D15 -> 0 | E25: 0 | F25: 0 | G25: 72333.2866 | H25: 33716.8182 | I25: 25348.56757 | J25: 25349.59827 | K25: 27985.12722 | L25: 33894.56973 | M25: 70782.14403 | N25: 115129.3752 | O25: 141568.8746 | P25: 135180.7222 | Q25: 107845.746 | R25: =R5*R15 -> 92410.07274 | S25: 58273.03399 | T25: =T5*T15 -> 34896.09029 | U25: 25336.847 | V25: 24977.65157 | W25: =W5*W15 -> 27667.66219 | X25: 33630.37763 | Y25: 72362.69324 | Z25: 119036.1712 | AA25: 144600.2441 | AB25: 138021.0107 | AC25: 113207.7171 | AD25: 93518.69099 | AE25: 59105.42583 | AF25: 34714.96873 | AG25: 24942.64939 | AH25: =AH5*AH15 -> 24218.44402
B26: Extra Large Service Schedule 121 | D26: =D6*D16 -> 0 | E26: 0 | F26: 0 | G26: 5921.236949 | H26: 3505.626571 | I26: 3083.102496 | J26: 3531.165175 | K26: 3143.341854 | L26: 3291.451147 | M26: 5926.522133 | N26: 7450.118547 | O26: =O6*O16 -> 7007.547551 | P26: 6977.860151 | Q26: 6236.495773 | R26: =R6*R16 -> 5270.571875 | S26: 3834.848688 | T26: 2875.721672 | U26: 2638.788171 | V26: 2859.792662 | W26: =W6*W16 -> 3186.913427 | X26: 3421.326888 | Y26: 5865.102108 | Z26: 7501.387315 | AA26: 7052.947095 | AB26: 6950.966481 | AC26: 6519.581793 | AD26: 5305.454482 | AE26: 3896.562316 | AF26: 2969.235036 | AG26: 2718.507212 | AH26: =AH6*AH16 -> 2963.606488
B27: Interrupt Service Schedule 131 | D27: =D7*D17 -> 0 | E27: 0 | F27: 0 | G27: 1398.577523 | H27: 793.3640592 | I27: 618.0035957 | J27: 561.1175267 | K27: 316.8835883 | L27: 348.9199831 | M27: 775.9113844 | N27: 1296.097771 | O27: 1508.998396 | P27: 1551.383683 | Q27: 1333.025142 | R27: =R7*R17 -> 1189.073672 | S27: 826.0244653 | T27: 604.8336728 | U27: 468.972077 | V27: 430.4428731 | W27: =W7*W17 -> 315.3036217 | X27: 345.9992988 | Y27: 762.4836537 | Z27: 1281.390084 | AA27: 1496.475852 | AB27: 1535.718058 | AC27: 1367.803311 | AD27: 1182.314775 | AE27: 825.8218073 | AF27: 606.9484831 | AG27: 476.3838432 | AH27: =AH7*AH17 -> 436.1105286
B28: Transport Service Schedule 146
B29: Special Contract Transport
B30: Total | D30: =SUM(D24:D29) -> 0 | E30: =SUM(E24:E29) -> 0 | F30: 0 | G30: 340190.3751 | H30: 147994.4746 | I30: 94746.00371 | J30: 81640.05476 | K30: 97191.49555 | L30: 115432.861 | M30: 287365.1894 | N30: 593087.7071 | O30: 831317.5771 | P30: 825931.0748 | Q30: 659346.7134 | R30: =SUM(R24:R29) -> 564047.9033 | S30: 345323.8422 | T30: 191659.5381 | U30: 120347.46 | V30: 102751.3308 | W30: =SUM(W24:W29) -> 100276.3527 | X30: 116232.0152 | Y30: 293629.775 | Z30: 599848.0985 | AA30: 841859.7783 | AB30: 832230.9074 | AC30: 685376.1861 | AD30: 568488.1048 | AE30: 348409.1087 | AF30: 193519.6813 | AG30: 121746.8499 | AH30: =SUM(AH24:AH29) -> 104574.9425
A32: Net DSM Revenue | C32: =RCF!C25 -> 0.953535 | D32: =D23 -> 2018-01-01 | E32: =E23 -> 2018-02-01 | F32: 2018-03-01 | G32: 2018-04-01 | H32: 2018-05-01 | I32: 2018-06-01 | J32: 2018-07-01 | K32: 2018-08-01 | L32: 2018-09-01 | M32: 2018-10-01 | N32: 2018-11-01 | O32: 2018-12-01 | P32: 2019-01-01 | Q32: 2019-02-01 | R32: =R23 -> 2019-03-01 | S32: 2019-04-01 | T32: 2019-05-01 | U32: 2019-06-01 | V32: 2019-07-01 | W32: =W23 -> 2019-08-01 | X32: 2019-09-01 | Y32: 2019-10-01 | Z32: 2019-11-01 | AA32: 2019-12-01 | AB32: 2020-01-01 | AC32: 2020-02-01 | AD32: 2020-03-01 | AE32: 2020-04-01 | AF32: 2020-05-01 | AG32: 2020-06-01 | AH32: =AH23 -> 2020-07-01
B33: Small Service Schedule 101 | D33: =D24*$C$32 -> 0 | E33: =E24*$C$32 -> 0 | F33: 0 | G33: 248431.4096 | H33: 104868.507 | I33: 62643.75007 | J33: 49772.78564 | K33: 62691.24836 | L33: 74278.39332 | M33: 200128.5092 | N33: 447410.1746 | O33: 649578.7044 | P33: 650521.705 | Q33: 518657.6718 | R33: =R24*$C$32 -> 443563.6806 | S33: 269268.6867 | T33: 146160.6028 | U33: =U24*$C$32 -> 87632.58671 | V33: =V24*$C$32 -> 71022.57045 | W33: =W24*$C$32 -> 65895.44115 | X33: 75171.27511 | Y33: 204666.2718 | Z33: 450096.3155 | AA33: 656709.196 | AB33: 653861.0831 | AC33: 538061.7634 | AD33: 446713.6449 | AE33: 271358.2287 | AF33: 148015.8355 | AG33: 89259.7529 | AH33: =AH24*$C$32 -> 73380.98457
B34: Large Service Schedule 111 | D34: =D25*$C$32 -> 0 | E34: 0 | F34: 0 | G34: 68972.32044 | H34: 32150.16624 | I34: 24170.74637 | J34: 24171.72919 | K34: 26684.79828 | L34: 32319.65855 | M34: 67493.25171 | N34: 109779.8888 | O34: 134990.8769 | P34: 128899.5499 | Q34: 102834.6934 | R34: =R25*$C$32 -> 88116.23871 | S34: 55565.37746 | T34: =T25*$C$32 -> 33274.64345 | U34: 24159.5704 | V34: 23817.06499 | W34: =W25*$C$32 -> 26382.08427 | X34: 32067.74214 | Y34: 69000.3607 | Z34: 113505.1555 | AA34: 137881.3937 | AB34: 131607.8644 | AC34: 107947.5205 | AD34: 89173.34501 | AE34: 56359.09222 | AF34: 33101.93771 | AG34: 23783.68918 | AH34: =AH25*$C$32 -> 23093.13402
B35: Extra Large Service Schedule 121 | D35: =D26*$C$32 -> 0 | E35: 0 | F35: 0 | G35: 5646.106675 | H35: 3342.737632 | I35: 2939.846138 | J35: 3367.089585 | K35: 2997.286475 | L35: 3138.51387 | M35: 5651.146282 | N35: 7103.948788 | O35: =O26*$C$32 -> 6681.941854 | P35: 6653.633879 | Q35: 5946.716997 | R35: =R26*$C$32 -> 5025.674753 | S35: 3656.662444 | T35: 2742.101264 | U35: 2516.176879 | V35: 2726.912396 | W35: =W26*$C$32 -> 3038.833495 | X35: 3262.354934 | Y35: 5592.580139 | Z35: 7152.835353 | AA35: 6725.231908 | AB35: 6627.989823 | AC35: 6216.649425 | AD35: 5058.93654 | AE35: 3715.508548 | AF35: 2831.26953 | AG35: 2592.191775 | AH35: =AH26*$C$32 -> 2825.902512
B36: Interrupt Service Schedule 131 | D36: =D27*$C$32 -> 0 | E36: 0 | F36: 0 | G36: 1333.592619 | H36: 756.5003982 | I36: 589.2880586 | J36: 535.0452008 | K36: 302.1595923 | L36: 332.7074161 | M36: 739.8586619 | N36: 1235.874588 | O36: =O27*$C$32 -> 1438.882786 | P36: 1479.29864 | Q36: 1271.086128 | R36: =R27*$C$32 -> 1133.823364 | S36: 787.6432386 | T36: 576.7300761 | U36: 447.1812894 | V36: 410.442345 | W36: =W27*$C$32 -> 300.6530389 | X36: 329.9224414 | Y36: 727.0548508 | Z36: 1221.850294 | AA36: 1426.942102 | AB36: 1464.360919 | AC36: 1304.24833 | AD36: 1127.378519 | AE36: 787.449997 | AF36: 578.7466218 | AG36: 454.2486679 | AH36: =AH27*$C$32 -> 415.8466529
B37: Transport Service Schedule 146
B38: Special Contract Transport
B39: Total | D39: =SUM(D33:D38) -> 0 | E39: 0 | F39: 0 | G39: 324383.4294 | H39: 141117.9113 | I39: 90343.63064 | J39: 77846.64961 | K39: 92675.49271 | L39: 110069.2732 | M39: 274012.7659 | N39: 565529.8868 | O39: 792690.4059 | P39: 787554.1874 | Q39: 628710.1684 | R39: =SUM(R33:R38) -> 537839.4175 | S39: 329278.3699 | T39: 182754.0776 | U39: 114755.5153 | V39: 97976.99018 | W39: =SUM(W33:W38) -> 95617.01196 | X39: 110831.2946 | Y39: 279986.2675 | Z39: 571976.1566 | AA39: 802742.7637 | AB39: 793561.2983 | AC39: 653530.1816 | AD39: 542073.305 | AE39: 332220.2795 | AF39: 184527.7893 | AG39: 116089.8825 | AH39: =SUM(AH33:AH38) -> 99715.86775 | AJ39: =SUM(D39:V39) -> 5147538.172 | AK39: =AJ39+SUM('DSM Balance'!C3:U3) -> 0
B42: WA101 | G42: 11688527.32 | H42: 4933991.284 | I42: 2947345.449 | J42: 2341775.405 | K42: 2171370.132 | L42: 2572701.755 | M42: 6931638.448 | N42: 15496470.64 | O42: 22498767.12 | P42: 22531428.82 | Q42: 17964194.47 | R42: 15363243.72 | S42: 9326373.283 | T42: 5062409.439 | U42: 3035236.757 | V42: 2459933.279 | W42: 2282350.352 | X42: 2603627.553 | Y42: 7088808.108 | Z42: 15589507.65 | AA42: 22745738.37 | AB42: 22647091.31 | AC42: 18636273.37 | AD42: 15472345.69 | AE42: 9398746.529 | AF42: 5126667.16 | AG42: 3091595.183 | AH42: 2541619.162
B43: WA111 | G43: 4575160.443 | H43: 2132626.072 | I43: 1603324.957 | J43: 1603390.15 | K43: 1721494.04 | L43: 2085011.06 | M43: 4354135.614 | N43: 7082138.011 | O43: 8708553.37 | P43: 8315588.694 | Q43: 6634088.44 | R43: 5684569.1 | S43: 3584642.654 | T43: 2146619.202 | U43: 1558586.129 | V43: 1536490.364 | W43: 1701965.304 | X43: 2068759.388 | Y43: 4451362.474 | Z43: 7322463.024 | AA43: 8895026.861 | AB43: 8490307.922 | AC43: 6963927.972 | AD43: 5752765.313 | AE43: 3635846.909 | AF43: 2135477.581 | AG43: 1534337.219 | AH43: 1489788.012
B44: WA112 | G44: 0 | H44: 0 | I44: 0 | J44: 0 | K44: 0 | L44: 0 | M44: 0 | N44: 0 | O44: 0 | P44: 0 | Q44: 0 | R44: 0 | S44: 0 | T44: 0 | U44: 0 | V44: 0 | W44: 0 | X44: 0 | Y44: 0 | Z44: 0 | AA44: 0 | AB44: 0 | AC44: 0 | AD44: 0 | AE44: 0 | AF44: 0 | AG44: 0 | AH44: 0
B45: WA121 | G45: 366867.2212 | H45: 217201.1506 | I45: 191022.4595 | J45: 218783.4681 | K45: 246374.0628 | L45: 257982.8187 | M45: 464518.7841 | N45: 583937.7516 | O45: 549249.1878 | P45: 546922.2996 | Q45: 488814.4124 | R45: 413105.6266 | S45: 300574.1327 | T45: 225398.0842 | U45: 206827.3172 | V45: 224149.5738 | W45: 249789.1879 | X45: 268162.435 | Y45: 459704.7036 | Z45: 587956.1802 | AA45: 552807.5886 | AB45: 544814.3828 | AC45: 511002.5981 | AD45: 415839.7134 | AE45: 305411.2258 | AF45: 232727.6298 | AG45: 213075.6684 | AH45: 232286.4661
B46: WA132 | G46: 91951.18497 | H46: 52160.68766 | I46: 40631.40011 | J46: 36891.35613 | K46: 27985.96762 | L46: 30815.30162 | M46: 68525.57748 | N46: 114466.4842 | O46: 133269.0673 | P46: 137012.3766 | Q46: 117727.7708 | R46: 105014.518 | S46: 72951.37646 | T46: 53416.63692 | U46: 41417.85137 | V46: 38015.09689 | W46: 27846.43091 | X46: 30557.35776 | Y46: 67339.69077 | Z46: 113167.5566 | AA46: 132163.1233 | AB46: 135628.8474 | AC46: 120799.248 | AD46: 104417.5976 | AE46: 72933.47846 | AF46: 53603.40902 | AG46: 42072.43071 | AH46: 38515.64292
B47: WA146 | G47: 3363026 | H47: 2788406 | I47: 2366298 | J47: 2124081 | K47: 1983520 | L47: 2031865 | M47: 2202293 | N47: 2912935 | O47: 3241516 | P47: 3707334 | Q47: 3995641 | R47: 3358243 | S47: 3370313 | T47: 2823329 | U47: 2430936 | V47: 2176014 | W47: 2033122 | X47: 2077351 | Y47: 2231609 | Z47: 2937694 | AA47: 3288535 | AB47: 3764853 | AC47: 4030690 | AD47: 3423700 | AE47: 3409415 | AF47: 2885762 | AG47: 2512017 | AH47: 2244285
B48: WA148 | G48: 4349512 | H48: 3935607 | I48: 3619411 | J48: 3485178 | K48: 3311152 | L48: 3444386 | M48: 3535930 | N48: 4053454 | O48: 4439028 | P48: 4784684 | Q48: 4902463 | R48: 4375317 | S48: 4397724 | T48: 3986541 | U48: 3669394 | V48: 3532375 | W48: 3355617 | X48: 3487041 | Y48: 3576009 | Z48: 4092546 | AA48: 4478220 | AB48: 4824490 | AC48: 4942839 | AD48: 4416222 | AE48: 4438686 | AF48: 4026798 | AG48: 3708685 | AH48: 3570615
G51: =SUM(G42:G48)-G10 -> 0 | H51: =SUM(H42:H48)-H10 -> 0 | I51: 0 | J51: 0 | K51: 0 | L51: 0 | M51: 0 | N51: 0 | O51: 0 | P51: 0 | Q51: 0 | R51: 0 | S51: 0 | T51: 0 | U51: 0 | V51: 0 | W51: 0 | X51: 0 | Y51: 0 | Z51: 0 | AA51: 0 | AB51: 0 | AC51: 0 | AD51: 0 | AE51: 0 | AF51: 0 | AG51: 0 | AH51: 0

Sheet DSM Balance
I1: 2018 | U1: 2019 | AG1: 2020
B2: End December | C2: End January | D2: End February | E2: End March | F2: End April | G2: End May | H2: End June | I2: End July | J2: End August | K2: End September | L2: End October | M2: End November | N2: End December | O2: End January | P2: End February | Q2: End March | R2: End April | S2: End May | T2: End June | U2: End July | V2: End August | W2: End September | X2: End October | Y2: End November | Z2: End December | AA2: End January | AB2: End February | AC2: End March | AD2: End April | AE2: End May | AF2: End June | AG2: End July
A3: Expected gas tariff rider revenue | F3: =-'Revenue - current rates'!G39 -> -324383.4294 | G3: =-'Revenue - current rates'!H39 -> -141117.9113 | H3: =-'Revenue - current rates'!I39 -> -90343.63064 | I3: =-'Revenue - current rates'!J39 -> -77846.64961 | J3: =-'Revenue - current rates'!K39 -> -92675.49271 | K3: =-'Revenue - current rates'!L39 -> -110069.2732 | L3: =-'Revenue - current rates'!M39 -> -274012.7659 | M3: =-'Revenue - current rates'!N39 -> -565529.8868 | N3: =-'Revenue - current rates'!O39 -> -792690.4059 | O3: =-'Revenue - current rates'!P39 -> -787554.1874 | P3: =-'Revenue - current rates'!Q39 -> -628710.1684 | Q3: =-'Revenue - current rates'!R39 -> -537839.4175 | R3: =-'Revenue - current rates'!S39 -> -329278.3699 | S3: =-'Revenue - current rates'!T39 -> -182754.0776 | T3: =-'Revenue - current rates'!U39 -> -114755.5153 | U3: =-'Revenue - current rates'!V39 -> -97976.99018 | V3: =-'Revenue - current rates'!W39 -> -95617.01196 | W3: =-'Revenue - current rates'!X39 -> -110831.2946 | X3: =-'Revenue - current rates'!Y39 -> -279986.2675 | Y3: =-'Revenue - current rates'!Z39 -> -571976.1566 | Z3: =-'Revenue - current rates'!AA39 -> -802742.7637 | AA3: =-'Revenue - current rates'!AB39 -> -793561.2983 | AB3: =-'Revenue - current rates'!AC39 -> -653530.1816 | AC3: =-'Revenue - current rates'!AD39 -> -542073.305 | AD3: =-'Revenue - current rates'!AE39 -> -332220.2795 | AE3: =-'Revenue - current rates'!AF39 -> -184527.7893 | AF3: =-'Revenue - current rates'!AG39 -> -116089.8825 | AG3: =-'Revenue - current rates'!AH39 -> -99715.86775
A4: Expected DSM cash expenditures | F4: 333155.16 | G4: 333155.16 | H4: 416443.95 | I4: 333155.16 | J4: 333155.16 | K4: 333155.16 | L4: 333155.16 | M4: 333155.16 | N4: 416443.95 | O4: 333155.16 | P4: 333155.16 | Q4: 333155.16 | R4: 333155.16 | S4: 333155.16 | T4: 416443.95 | U4: 333155.16 | V4: 333155.16 | W4: 333155.16 | X4: 333155.16 | Y4: 333155.16 | Z4: 416443.95 | AA4: 333155.16 | AB4: 333155.16 | AC4: 333155.16 | AD4: 333155.16 | AE4: 333155.16 | AF4: 416443.95 | AG4: 333155.16
A5: Accounting Adjustment
A6: Net change in balance | D6: =D3+D4 -> 0 | E6: =E3+E4 -> 0 | F6: 8771.730638 | G6: 192037.2487 | H6: 326100.3194 | I6: =I3+I4 -> 255308.5104 | J6: =J3+J4 -> 240479.6673 | K6: 223085.8868 | L6: 59142.39411 | M6: -232374.7268 | N6: -376246.4559 | O6: -454399.0274 | P6: -295555.0084 | Q6: -204684.2575 | R6: 3876.790135 | S6: 150401.0824 | T6: 301688.4347 | U6: 235178.1698 | V6: =V3+V4 -> 237538.148 | W6: 222323.8654 | X6: 53168.89247 | Y6: -238820.9966 | Z6: -386298.8137 | AA6: -460406.1383 | AB6: -320375.0216 | AC6: -208918.145 | AD6: 934.8805003 | AE6: 148627.3707 | AF6: 300354.0675 | AG6: 233439.2922
A8: Gas Tariff rider balance | D8: 0 | E8: -14378.16 | F8: =F6+E8 -> -5606.429362 | G8: =G6+F8 -> 186430.8193 | H8: =H6+G8 -> 512531.1387 | I8: =I6+H8 -> 767839.6491 | J8: =J6+I8 -> 1008319.316 | K8: =K6+J8 -> 1231405.203 | L8: =L6+K8 -> 1290547.597 | M8: =M6+L8 -> 1058172.871 | N8: =N6+M8 -> 681926.4147 | O8: =O6+N8 -> 227527.3873 | P8: =P6+O8 -> -68027.6211 | Q8: =Q6+P8 -> -272711.8786 | R8: =R6+Q8 -> -268835.0884 | S8: =S6+R8 -> -118434.0061 | T8: =T6+S8 -> 183254.4287 | U8: =U6+T8 -> 418432.5985 | V8: =V6+U8 -> 655970.7465 | W8: 878294.6119 | X8: 931463.5044 | Y8: 692642.5077 | Z8: 306343.694 | AA8: -154062.4442 | AB8: -474437.4659 | AC8: -683355.6109 | AD8: -682420.7304 | AE8: -533793.3597 | AF8: -233439.2922 | AG8: 4.365574569e-10
A13: 2015 Washington gas DSM budget | C13: CY 2015 expected expenditures (From DSM Business Plan)
A14: 2016 Washington gas DSM budget | C14: CY 2016 expected expenditures
A15: 2017 Washington gas DSM budget | C15: CY 2016 expected expenditures + 2%
A16: 2018 Washington gas DSM budget | C16: CY 2017 expected expenditures + 2%
A18: End of July 2018 Balance | B18: =I8 -> 767839.6491 | C18: Underfunded "Surcharge"
A19: Aug 2018 - July 2020 Expenditure Budget | B19: =SUM(J4:AG4) -> 8328879
A20: Total Projected DSM Balance + Expenditures | B20: =B18+B19 -> 9096718.649
A22: Net Revenue Projected to be Recovered | B22: =SUM(J3:AG3) -> -9096718.649 | C22: Aug 2018 - July 2020
A24: Total Projected DSM Balance (July 2020) | B24: =B20+B22 -> 0 | C24: Underfunded (Surcharge)
A29: August 2018 - July 2019
A30: DSM Revenue | B30: =SUM(J3:U3) -> -4513846.551
A31: DSM Expense | B31: =SUM(J4:U4) -> 4164439.5
B32: =B30+B31 -> -349407.0506

Sheet Base Revenue
A1: AVISTA UTILITIES | L1: This worksheet pulls data from 'Pres & Prop Rev' tab.
A2: WASHINGTON NATURAL GAS
A3: PROPOSED INCREASE BY SERVICE SCHEDULE
A4: 12 MONTHS ENDED DECEMBER 31, 2016
A5: (000s of Dollars)
A6: From UG-170486 Compliance Filing, Attachment 2, Page 1
D8: Base Tariff | F8: Base Tariff | G8: Base | H8: Total Billed | J8: Percent | O8: Present
D9: Revenue | E9: Final | F9: Revenue | G9: Tariff | H9: Revenue | I9: Final | J9: Increase | K9: Gas | M9: Margin | O9: Margin
A10: Line | B10: Type of | C10: Schedule | D10: Under Present | E10: General | F10: Under Proposed | G10: Percent | H10: at Present | I10: General | J10: on Billed | K10: Costs | M10: Increase | O10: Revenue
A11: No. | B11: Service | C11: Number | D11: Rates(1) | E11: Decrease | F11: Rates | G11: Increase | H11: Rates (2) | I11: Decrease | J11: Revenue
B12: (a) | C12: (b) | D12: (c) | E12: (d) | F12: (e) | G12: (f) | H12: (g) | I12: (i) | J12: (j)
A14: 1 | B14: General Service | C14: 101/102 | D14: 67622.22105 | E14: -1662.59565 | F14: 65959.5254 | G14: =E14/D14 -> -0.02458652828 | H14: 101853.9836 | I14: =E14 -> -1662.59565 | J14: =(+E14)/H14 -> -0.01632332473 | K14: =('[3]Pres & Prop Rev'!D46*[3]Exh3!E15)/1000 -> 46969.15564 | M14: =E14/(D14-K14) -> -0.08050115644 | O14: =D14-K14 -> 20653.06541 | P14: =I14/H14 -> -0.01632332473 | Q14: =#REF!/H14 -> 
A15: 2 | B15: Large General Service | C15: 111/112/116 | D15: 15462.14031 | E15: -380.46058 | F15: 15081.67973 | G15: =E15/D15 -> -0.02460594538 | H15: 28321.83271 | I15: -380.46058 | J15: =(+E15)/H15 -> -0.01343347318 | K15: =('[3]Pres & Prop Rev'!E46*[3]Exh3!E19)/1000 -> 18143.07905 | M15: 0.1419131943 | O15: -2680.938738 | P15: -0.01343347318 | Q15: =#REF!/H15 -> 
A16: 3 | B16: Large General Svc.-High Annual Load Factor | C16: 121/122/126 | D16: 1024.17931 | E16: -25.18952 | F16: 998.88979 | G16: -0.02459483389 | H16: 2271.7746 | I16: -25.18952 | J16: -0.01108803664 | K16: =('[3]Pres & Prop Rev'!F46*[3]Exh3!E28)/1000 -> 2126.379668 | M16: 0.02285384849 | O16: -1102.200358 | P16: -0.01108803664 | Q16: =#REF!/H16 -> 
A17: 4 | B17: Interruptible Service | C17: 131/132 | D17: 190.16824 | E17: -4.6779 | F17: 185.29034 | G17: =E17/D17 -> -0.02459874477 | H17: 430.80653 | I17: -4.6779 | J17: -0.01085847051 | K17: =('[3]Pres & Prop Rev'!G46*[3]Exh3!E40)/1000 -> 375.3786108 | M17: 0.02525722496 | O17: -185.2103708 | P17: -0.01085847051 | Q17: =#REF!/H17 -> 
A18: 5 | B18: Transportation Service | C18: 146 | D18: 2920.586195 | E18: -71.88852 | F18: 2848.897675 | G18: =E18/D18 -> -0.02461441477 | H18: 2963.286335 | I18: -71.88852 | J18: -0.02425972784 | K18: =('[3]Pres & Prop Rev'!H46*[3]Exh3!E49)/1000 -> 17.12491312 | M18: -0.02475959312 | O18: 2903.461282 | P18: -0.02425972784 | Q18: =#REF!/H18 -> 
A19: 6 | B19: Special Contracts | C19: 148 | D19: 1612.36411 | E19: 0 | F19: 1612.36411 | G19: 0 | H19: 1612.36411 | I19: 0 | J19: 0 | M19: 0 | O19: 1612.36411 | P19: 0 | Q19: =#REF!/H19 -> 
A20: 7 | B20: Total | D20: =SUM(D14:D19)-0.2 -> 88831.45922 | E20: =SUM(E14:E19) -> -2144.81217 | F20: =SUM(F14:F19)-0.6 -> 86686.04705 | G20: =E20/D20 -> -0.02414473644 | H20: =SUM(H14:H19)+1 -> 137455.0479 | I20: =SUM(I14:I19)-0.2 -> -2145.01217 | J20: -0.01560373521 | K20: =SUM(K14:K19) -> 67631.11788 | M20: -0.1011687565 | O20: 21200.34134 | P20: -0.01560519023 | Q20: =#REF!/H20 -> 
I21: =ROUND(I20-SUM(I14:I19),-1) -> 0 | J21: =ROUND(J20-SUM(J14:J19),0) -> 0
D23: =IF(Base1_Billing2=2,"Exhibit won't work until Base1_Billing2 range set to '1'","") -> 
A25: (1) Includes Purchase Adjustment Schedule 150; excludes all other rate adjustments.
A27: (2) Includes Schedule 150 (Purchase Gas Cost Adjustment), Schedule 155 (Gas Rate Adjustment),
A28: Schedule 191 (DSM Adjustment) and Schedule 192 (LIRAP Adjustment).
D30: =SUM(ROUND(D14:D19,0)) ->  | E30: =SUM(ROUND(E14:E19,0)) -> -2145 | F30: =SUM(ROUND(F14:F19,0)) -> 86687 | H30: =SUM(ROUND(H14:H19,0)) -> 137454 | J30: =SUM(ROUND(J14:J19,0)) -> 0
D31: =ROUND(D20,0)-D30 ->  | E31: =ROUND(E20,0)-E30 -> 0 | F31: =ROUND(F20,0)-F30 -> -1 | H31: =ROUND(H20,0)-H30 -> 1 | J31: =ROUND(J20,0)-J30 -> 0
G34: Rate Sch. | H34: Therms | I34: Sch 155 Rate | J34: Sch 155 Rate
G35: 112 | H35: 0 | I35: -0.01451 | J35: -0.00014 | K35: No 112's in test year
G36: 122 | H36: ='[3]Rev Runs CY'!O40 -> 665507 | I36: 0.00539 | J36: -0.00014

Sheet RCF
A1: AVISTA UTILITIES
A2: REVENUE CONVERSION FACTOR
A3: WASHINGTON NATURAL GAS
A4: TWELVE MONTHS ENDED DECEMBER 31, 2016
A7: From UG-170486
A10: Description | C10: Factor
A12: Revenues | C12: 1
A14: Expense:
A15: Uncollectibles | C15: 0.006183
A17: Commission Fees | C17: 0.002
A19: Washington Excise Tax | C19: 0.038282
A21: Franchise Fees (City of Millwood Expired in 2004) | C21: 0
A23: Total Expense | C23: =C15+C17+C19+C21 -> 0.046465
A25: Net Operating Income Before FIT | C25: =C12-C23 -> 0.953535
A27: Federal Income Tax @ 21% | C27: 0.200242
A29: REVENUE CONVERSION FACTOR | C29: =C25-C27 -> 0.753293
